Cogmind - Beta 15 @@@ ROGUE MODE // 2025.05.25 @ 23:44:05 Player: Skysub Result: Destroyed by PG-ZSL(R) with Subdweller Laser Performance ------------- Evolutions (0) 0 Regions Visited (2) 400 Robots Destroyed (17) 85 Value Destroyed (379) 379 Prototype IDs (0) 0 Alien Tech Used (0) 0 Bonus (0) 0 TOTAL SCORE: 864 Bonus ------- None Cogmind --------- Core Integrity 0/250 Matter 273/300 Energy 200/200 System Corruption 0% Temperature Cool (6) Movement Rolling (125) Ox3 Location -10/Subcaves Parts ------- > --- POWER (1) -------- Subdweller Power Source > --- PROPULSION (2) --- Wheel > --- UTILITY (2) ------ Large Storage Unit > --- WEAPON (2) ------- Medium Laser Subdweller Laser > --- INVENTORY (15) --- Compact Wheel Subdweller Monowheel Subdweller Monowheel Subdweller Monowheel Improved Heat Sink Small Storage Unit Structural Scanner Subdweller Optics Scrap Shield Makeshift System Shield Cobbler Unit Battle Rifle Peak State ------------ > --- POWER ------------ Subdweller Power Source > --- PROPULSION ------- Wheel Compact Wheel > --- UTILITY ---------- Large Storage Unit > --- WEAPON ----------- Medium Laser Battle Rifle > --- INVENTORY -------- Compact Wheel Subdweller Monowheel Subdweller Monowheel Improved Heat Sink Small Storage Unit Structural Scanner Scrap Shield Makeshift System Shield Cobbler Unit [Rating: 10] Favorites ----------- Power Ion Engine Engine Ion Engine Propulsion Light Treads Treads Light Treads Wheel Wheel Utility Large Storage Unit Storage Large Storage Unit Protection Light Armor Plating Weapon Medium Laser Energy Gun Medium Laser Ballistic Gun Battle Rifle Build | -11 -10 -10 ------- Run | Yrd Mat Sub Slots Evolved . | . . . Power . | . . . Propulsion . | . . . Utility . | . . . Weapon . | . . . Parts Attached 17 | 5 3 9 Power 3 | 1 . 2 Engine 3 | 1 . 2 Core . | . . . Reactor . | . . . Propulsion 4 | 2 . 2 Treads 2 | 2 . . Leg . | . . . Wheel 2 | . . 2 Hover . | . . . Flight . | . . . Utility 4 | 1 2 1 Device . | . . . Storage 2 | 1 1 . Processor . | . . . Hackware . | . . . Protection 2 | . 1 1 Artifact . | . . . Weapon 6 | 1 1 4 Energy Gun 4 | 1 1 2 Energy Cannon . | . . . Ballistic Gun 2 | . . 2 Ballistic Cannon . | . . . Launcher . | . . . Special Weapon . | . . . Impact Weapon . | . . . Slashing Weapon . | . . . Piercing Weapon . | . . . Special Melee Weapon . | . . . Unidentified Prototypes . | . . . Parts Lost 10 | . . 10 Power 2 | . . 2 Propulsion 3 | . . 3 Utility 2 | . . 2 Weapon 3 | . . 3 Highest Loss Streak 6 | . . 6 To Critical Strikes . | . . . Average Backups 8 | 2 6 10 Power . | . 1 . Propulsion 2 | 1 2 3 Utility 3 | . 2 5 Weapon 1 | . 1 1 Tool/Special . | . . . Unused Backups 10 | . . 10 Power . | . . . Propulsion 4 | . . 4 Utility 6 | . . 6 Weapon . | . . . Tool/Special . | . . . Average Slot Usage (%) 88 | . 89 86 Engine 12 | . 14 11 Treads 21 | . 28 14 Wheel 5 | . . 12 Storage 14 | . 14 14 Protection 6 | . 7 5 Energy Gun 24 | . 24 25 Ballistic Gun 1 | . . 2 Peak Build Rating 10 | 5 8 10 Average Rating 7 | 4 6 8 On Entrance 4 | . 5 8 Naked Turns . | . . . Heaviest Build 32 | 12 32 32 Greatest Support 40 | 40 40 40 Greatest Overweight (x) 3 | 3 . 3 Average Overweight (x) . | . . . Largest Inventory Capacity 15 | 8 15 15 Average Capacity 13 | 7 13 15 Most Carried 14 | 4 9 14 Average Carried 8 | 2 6 11 Final Capacity 15 | 8 15 15 Final Carried 14 | 4 9 14 Class Distribution -------------------- 100% | Mutant Dominant Class ---------------- Mutant | -10/Materials Mutant | -10/Subcaves Resources | -11 -10 -10 ----------- Run | Yrd Mat Sub Matter Collected 363 | 250 30 83 Remotely . | . . . Salvage Created 476 | . 306 170 Parts 35 | . 19 16 Haulers Intercepted . | . . . Recyclers Shooed 1 | . 1 . Parts Field Recycled . | . . . Retrieved Matter . | . . . Parts Self-Destructed 17 | . . 17 Prevented . | . . . Kills | -11 -10 -10 ------- Run | Yrd Mat Sub Combat Hostiles Destroyed 13 | . 7 6 Guns 13 | . 7 6 Classes Destroyed 6 | . 5 1 Worker 2 | . 2 . Builder 1 | . 1 . Mechanic 1 | . 1 . Swarmer 5 | . 3 2 Grunt 4 | . 4 . Subdweller 4 | . . 4 Best Kill Streak 4 | . 4 3 Combat Bots Only 3 | . 3 3 Max Kills in Single Turn 1 | . 1 1 Gunslinging . | . . . Exploded . | . . . Melee . | . . . Uniques/NPCs Destroyed . | . . . Combat | -11 -10 -10 -------- Run | Yrd Mat Sub Hostile Shots Fired 142 | . 27 115 Missed 48 | . 8 40 Hits 94 | . 19 75 Projectile 94 | . 19 75 AOE 1 | . 1 . Critical Strikes 1 | . . 1 Damage Taken 1337 | . 223 1114 Core 256 | . 27 229 Absorbed by Shields . | . . . Core Remaining (%) 100 | 100 . . Volleys Fired 68 | . 27 41 Largest 2 | . 2 2 Hottest 110 | . 100 110 Shots Fired 120 | . 51 69 Gun 120 | . 51 69 Cannon . | . . . Launcher . | . . . Special . | . . . Kinetic 14 | . . 14 Thermal 106 | . 51 55 Explosive . | . . . Electromagnetic . | . . . Robot Hit Streak 14 | . 6 14 Robot Miss Streak 3 | . 2 3 Penetration Max . | . . . Secondary Targets 2 | . 1 1 Max Gunslinging Chain 1 | . 1 1 Shots Hit Robots 72 | . 31 41 Core Hits 28 | . 18 10 Critical Kills 1 | . . 1 Critical Parts Destroyed . | . . . Critical Strikes 3 | . . 3 Burn 2 | . . 2 Destroy 1 | . . 1 Melee Attacks . | . . . Impact . | . . . Slashing . | . . . Piercing . | . . . Sneak Attacks . | . . . Combat Hostiles . | . . . Follow-up Attacks . | . . . Damage Inflicted 984 | . 413 571 Guns 968 | . 397 571 Cannons . | . . . Explosions . | . . . Melee . | . . . Ramming 16 | . 16 . Kinetic 189 | . . 189 Thermal 779 | . 397 382 Explosive . | . . . Electromagnetic . | . . . Impact . | . . . Slashing . | . . . Piercing . | . . . Highest Corruption . | . . . Average Corruption . | . . . Corruption Purged . | . . . Corruption Blocked . | . . . Overload Shots . | . . . Overflow Damage . | . . . Projectiles . | . . . Explosions . | . . . Melee . | . . . Knockbacks 2 | . 2 . Impact 2 | . 2 . Kinetic . | . . . Secondary . | . . . Self-Inflicted Damage . | . . . Shots . | . . . Rammed 4 | . 4 . Targets Rammed 5 | . 5 . Kicked . | . . . Crushed 1 | . 1 . Highest Temperature 393 | . 393 . Average Temperature 141 | . 141 . Received Heat Transfer 246 | . 87 159 Effects 6 | . 6 . Shutdowns 2 | . 2 . Energy Bleed 1 | . 1 . Interference 2 | . 2 . Damage (minor) 1 | . 1 . Siege Activations . | . . . Martial Activations . | . . . Shielding Activations . | . . . Robots Disrupted . | . . . Combat Hostiles . | . . . Robots Corrupted . | . . . Combat Hostiles . | . . . Parts Fried . | . . . Impact Corruptions . | . . . Robots Melted . | . . . Combat Hostiles . | . . . Parts Melted 3 | . 2 1 Heat Transferred 2430 | . 1184 1246 Parts Sabotaged . | . . . Parts Stolen . | . . . Parts Stripped . | . . . Power Chain Reactions . | . . . Alert | -11 -10 -10 ------- Run | Yrd Mat Sub Maximum Alert Level . | . . . Low Security (%) 100 | 100 100 . Level 1 . | . . . Level 2 . | . . . Level 3 . | . . . Level 4 . | . . . Level 5 . | . . . High Security . | . . . Max Security . | . . . Peak Influence 153 | . 153 . Initial . | . . . Average 48 | . 55 . Influence Increases 404 | . 289 115 Destroy 0b10 Robot/C 180 | . 140 40 Destroy 0b10 Robot/NC 20 | . 20 . Destroy Leader 30 | . 30 . Successful Hack 9 | . 9 . Select Force Hacks 60 | . 60 . Lose Combat Pursuer 105 | . 30 75 Influence Decreases 404 | . 232 172 Entered New Map 28 | . . 28 Time Decay 341 | . 232 109 Lost Part 35 | . . 35 Squads Dispatched 2 | . 2 . Investigation 2 | . 2 . Extermination . | . . . Reinforcement . | . . . Assault . | . . . Garrison . | . . . Intercept . | . . . Searches Triggered . | . . . Construction Impeded . | . . . Haulers Reinforced . | . . . Active Scanning Responses . | . . . Cargo Convoy Interrupts . | . . . Stealth | -11 -10 -10 --------- Run | Yrd Mat Sub Distress Signals 2 | . 2 . Communications Jammed . | . . . Distress Signals . | . . . Times Spotted 30 | . 15 15 Peak Tracking Total 5 | . 5 4 Tactical Retreats 5 | . 2 3 Traps | -11 -10 -10 ------- Run | Yrd Mat Sub Traps Triggered . | . . . Indirectly . | . . . Trap Hack Attempts . | . . . Triggered . | . . . Disarmed . | . . . Reprogrammed . | . . . Reused . | . . . Traps Extracted . | . . . Installed . | . . . Triggered . | . . . Machines | -11 -10 -10 ---------- Run | Yrd Mat Sub Machines Disabled . | . . . Max in Single Turn . | . . . Machines Repaired . | . . . Machines Dismantled . | . . . Machines Sabotaged . | . . . Overloaded Fab Kills . | . . . Hacking | -11 -10 -10 --------- Run | Yrd Mat Sub Machines Accessed 4 | . 4 . Terminals 2 | . 2 . Fabricators . | . . . Repair Stations . | . . . Recycling Units 2 | . 2 . Scanalyzers . | . . . Garrison Access . | . . . Total Hacks 10 | . 10 . Successful 8 | . 8 . Failed 2 | . 2 . Catastrophic . | . . . Database Lockouts . | . . . Manual 5 | . 5 . Terminals 5 | . 5 . Fabricators . | . . . Repair Stations . | . . . Recycling Units 5 | . 5 . Scanalyzers . | . . . Garrison Access . | . . . Terminal Hacks 1 | . 1 . Branch Access Points 1 | . 1 . Fabricator Hacks . | . . . Repair Station Hacks . | . . . Recycling Unit Hacks 3 | . 3 . Report Inventory 2 | . 2 . Retrieve Components 1 | . 1 . Scanalyzer . | . . . Garrison Access Hacks . | . . . Unauthorized Hacks 4 | . 4 . Terminals 2 | . 2 . Botnet 2 | . 2 . Fabricators . | . . . Repair Stations . | . . . Recycling Units 2 | . 2 . Tunnel 2 | . 2 . Scanalyzers . | . . . Garrison Access . | . . . Data Cores Recovered . | . . . Used . | . . . Hacking Detections 2 | . 2 . Full Trace Events . | . . . Feedback Events . | . . . Feedback Blocked . | . . . Robot Schematics Acquired . | . . . Robots Built . | . . . Authchips . | . . . Time . | . . . Total Robot Build Rating . | . . . Part Schematics Acquired . | . . . Parts Built . | . . . Authchips . | . . . Time . | . . . Total Part Build Rating . | . . . Parts Repaired . | . . . Time . | . . . Parts Recycled . | . . . Recycled Matter . | . . . Retrieved Matter . | . . . Retrieved Components 10 | . 10 . Parts Scanalyzed . | . . . Part Schematics Acquired . | . . . Parts Damaged . | . . . Bothacking | -11 -10 -10 ------------ Run | Yrd Mat Sub Used RIF Installer . | . . . Robots Hacked . | . . . Non-combat . | . . . Combat . | . . . Robot Hacks Applied . | . . . Relay Couplers Released . | . . . Fabnet Peak Effective % . | . . . Robots Rewired . | . . . Allies Hacked . | . . . Hacks Repelled . | . . . Allies | -11 -10 -10 -------- Run | Yrd Mat Sub Total Allies . | . . . Largest Group . | . . . Highest-Rated Group . | . . . Highest-Rated Ally . | . . . Total Orders . | . . . Ally Attacks . | . . . Total Damage . | . . . Kills . | . . . Allies Corrupted . | . . . Allies Melted . | . . . Intel | -11 -10 -10 ------- Run | Yrd Mat Sub Active Infowar (turns) . | . . . Robot Analysis Total . | . . . Derelict Logs Recovered 1 | . . 1 Drone Launches . | . . . Drone Recoveries . | . . . Exploration | -11 -10 -10 ------------- Run | Yrd Mat Sub Turns Passed 1365 | 97 678 590 Spaces Moved 657 | 55 246 356 Core 8 | 8 . . Treads 444 | 47 246 151 Legs . | . . . Wheels 205 | . . 205 Hover . | . . . Flight . | . . . Fastest Speed 50 | 50 160 90 Average Speed 143 | 157 160 129 Slowest Speed 200 | 200 160 160 Overloaded Moves . | . . . Propulsion Burnouts . | . . . Robots Hopped . | . . . Potential Cave-ins . | . . . Cave-ins Triggered . | . . . Exploration Rate (%) 25 | 5 39 32 Regions Visited 2 Branch Regions 1 Pre-discovered Areas 2 | . 2 . Known Exits Taken . | . . . Unknown Exits Taken 2 | 1 1 . Scrap Searched . | . . . Spaces Dug . | . . . Terrain Destroyed . | . . . Melee . | . . . Projectile . | . . . AOE . | . . . Terrain Rammed . | . . . Walls Destroyed . | . . . Machines Disabled . | . . . Actions | -11 -10 -10 --------- Run | Yrd Mat Sub Total 955 | 63 476 416 Wait 191 | . 191 . Move 655 | 54 245 356 Hop . | . . . Pick Up 18 | 4 4 10 Fast Attach 9 | 5 3 1 Attach 7 | . . 7 Detach 1 | . 1 . Swap 1 | . . 1 Drop . | . . . Fire 68 | . 27 41 Melee . | . . . Ram . | . . . Kick . | . . . Crush 5 | . 5 . Escape Stasis . | . . . Rewire . | . . . Trap . | . . . Miscellaneous . | . . . Route ------- -11/Scrapyard -10/Materials (discovered 3 exits: *Min x2 / [*Sub]) -10/Subcaves (discovered 3 exits: [*Mat x2] / [*Rec]) History --------- Turn | Location | Event 25 | -11/Scrapyard | Discovered new exit (range 15) 98 | -11/Scrapyard | Entered Materials 154 | -10/Materials | Discovered new exit (range 7) 305 | -10/Materials | Build established: Mutant 403 | -10/Materials | Identified exit to Mines 746 | -10/Materials | Discovered new exit (range 11) 776 | -10/Materials | Entered Subcaves 777 | -10/Subcaves | Approached by a straggling Scientist 821 | -10/Subcaves | Shifting Twisted Machinery released Battle Rifle 824 | -10/Subcaves | Shifting Twisted Machinery released Mak. System Shield 931 | -10/Subcaves | Discovered new exit (range 10) 983 | -10/Subcaves | Learned 2 Materials zone layouts 1005 | -10/Subcaves | Discovered new exit (range 11) 1035 | -10/Subcaves | Ambushed by Subdwellers from Twisted Machinery 1078 | -10/Subcaves | Core integrity fell below 50% 1112 | -10/Subcaves | Lost 6 parts (1p2n1u2w) 1236 | -10/Subcaves | A swath of the cavern ceiling suddenly collapsed 1260 | -10/Subcaves | Core integrity fell below 20% 1320 | -10/Subcaves | Discovered new exit (range 12) 1366 | -10/Subcaves | Destroyed by PG-ZSL(R) with Subdweller Laser Last Messages --------------- Med. Laser destroyed. 4S-ZNT(R) destroyed. Acquired 43 matter. Acquired Sub. Monowheel. Acquired Sub. Power Source. Acquired Sub. Monowheel. Acquired Scrap Shield. Acquired Sub. Machine Gun. Acquired 20 matter. Acquired Sub. Laser. Sub. Machine Gun destroyed. 87-2JU(R) suffers critical hit (Destroy). 87-2JU(R) destroyed. Acquired Sub. Optics. Acquired Sub. Monowheel. A swath of the cavern ceiling suddenly collapses. EXIT=FOUND A thin wall crumbles away, revealing a door. Com. Wheel destroyed. Map ----- +----------------------------------------------------+ | ?????????????????????????????????????????????? | | ?????????????????????????????????????????????? | | ?????????????????????????????????????????????? | | ?????????????????????????????????????????????? | | ?????????????????????????????????????????????? | | ?????????????????????????????????????????????? | | ?????????????????????????????????????????????? | | ?????????????????????????????????????????????? | | ?????????????????????????????????????????????? | | ?????????????????????????????????????????????? | | ????????????????????? ?????????????????????? | | ???????????????????? ?????????????????????? | | ???????????????????? ?????????????????????? | | ???????????????????? ?????????????????????? | | ???????????????????? ?????????????????????? | | ????????????????????# ?????????????????????? | | ???????????????????? ?????????????????????? | | ??????????????????### #?????????????????????? | | ???????????????#### #?????##??????????????? | | ??????????????## #????# ##?????????????? | | ??????????????# ##??# #?????????????? | | ??????????????# ### ##????????????? | | ??????????????? ##????????##?? | | ????????????????? ##?????? #?? | | ??????????????????? #?# ###### ??? | | ????????????????????#@ #????# #???? | | ????????????????????## #????# #???? | | ????????????????????## #???## #????? | | ????????????????????# ##### #??????? | | ????????????????????## ## #?????????? | | ?????????????????????### #??????????? | | ???????????????????????# #??????????? | | ???????????????????????## #??????????? | | ????????????????????????## ####???????? | | ?????????????????????????# #???????? | | ?????????????????????????####R ##???????? | | ???????????????????????###??#R ####????????? | | ??????????????????????## ### ##???????????? | | ???????????????????#### #????????????? | | ??????????????????## ##???????????? | | ??????????????????# #???????????? | | ??????????????????### # # #???????????? | | ????????????????? ????##?## #???????????? | | ?????????????????# ?##???# #???????????? | | ????????????????## ## #?## ##??????????? | | ???????????????? ## ##?????????? | | ????????????????# ####??????? | | ?????????????????# ## #?? | | ?????????????????# #??? | | ?????????????????# ##"" ##??? | +----------------------------------------------------+ Best States ------------- Heat Dissipation 25 Energy Generation 15 Energy Capacity 250 Matter Stores 300 Matter Capacity 300 Sight Range 16 Terrain Scan Density 10 Armor Coverage 150 Evasion (%) 40 Recoil Reduction 2 Item Schematics ----------------- None Robot Schematics ------------------ None Fabricated ------------ Nothing Repaired ---------- Nothing Alien Tech Used ----------------- None Achievements -------------- None Challenges ------------ None Game ------ Seed ChargeRainbowAutobeam Manual? 0 Play Time 00:15:43 Cumulative 99.3 hours Start 2025.05.25 @ 23:33:52 End 2025.05.25 @ 23:44:05 Sessions 1 Manual Loads 0 Difficulty Rogue Special Mode None Game No. 104 Rogue 104 Adventurer 0 Explorer 0 Win Type - Total 2 Types 1/0/0/1/0/0/0/0/0/0 Lore% 54 Gallery% 53 Achievement% 47 Wizard Run 0 Options --------- Layout 1 ASCII 0 Keyboard 1 Movement Arrows Keybinds 0 Fullscreen 1 Font 24/Smallcaps Map View 50x35 Zoom Use 4% Tactical HUD 0 Map Filters NONE Filters NONE Steam 1 RUN: 1696cc4b-4120-4d53-9924-5553d7e4d2a5